Workbook

Sheet Temp Sed Trap Calculations
A1: Temporary Sediment Trap Rock Stage Discharge | I1: Stage Area-Storage Calculations (user input area are shaded in Gray)
A2: Graphical Method (user input area are shaded in Gray)
A3: Governing Equation: dh/dl = aq^b | K3: Trapping Area Height (ft)= | L3: 5
K4: Stage Area-Storage Increments (ft)= | L4: 0.25
E5: Metric
C6: Dam Height (ft) | D6: 5 | E6: =D6*0.3048 -> 1.524 | F6: Max dam height = 5.0 feet | J6: Side Slopes (x:1)
C7: Top Dam Flow Length (ft) | D7: 3.3 | E7: =D7*0.3048 -> 1.00584 | F7: Minimum = 2.0 feet | J7: Left = | K7: 2
C8: Rock Side Slopes (x:1) | D8: 1 | J8: Right = | K8: 2
C9: Rock Diameter D50 (inches) | D9: 6 | E9: =(D9/12)*0.3048 -> 0.1524 | J9: Front Slope = | K9: 2
J10: Back slope = | K10: 3
C11: Bottom Dam Width (ft) | D11: 10 | E11: =(D11)*0.3048 -> 3.048
C12: Soil-Rock Side Slope (x:1) | D12: 1 | J12: Bottom Dimension (ft)
J13: Length = | K13: 40
A14: Depth | B14: Depth | C14: Flow Length dl (m) | D14: Coefficient | E14: Exponent | F14: Flow | G14: Flow Width | H14: Total Flow | J14: Width = | K14: 20
A15: (ft) | B15: (m) | C15: (m) | D15: a | E15: b | F15: (m^2 / sec) | G15: (ft) | H15: cfs
A16: 0 | B16: =A16*0.3048 -> 0 | C16: =($D$7+2*($D$8*($D$6-A16)))*0.3048 -> 4.05384 | D16: =FindCoef_a($E$9,C16) ->  | E16: =FindCoef_b($E$9) ->  | F16: =(B16/(D16*C16))^(1/E16) ->  | G16: =D11 -> 10 | H16: =(F16*10.764)*G16 ->  | J16: Stage (ft) | K16: Area (ft^2) | L16: Area (acres) | M16: Storage (ft^3) | N16: Storage (acre-ft)
A17: =IF(A16<$D$6,A16+0.25,IF(A16=$D$6,0)) -> 0.25 | B17: =A17*0.3048 -> 0.0762 | C17: 3.90144 | F17: =((B17-B16)/(D17*C17))^(1/E17) ->  | G17: =$D$11+2*($D$12*A17) -> 10.5 | H17: =(F17*10.764)*G17 ->  | J17: 0 | K17: =K13*K14 -> 800 | L17: =K17/43560 -> 0.01836547291 | M17: 0 | N17: 0
A18: =IF(A17=0,0,(IF(A17=$D$6,0,IF(A17<$D$6,A17+0.25)))) -> 0.5 | B18: =A18*0.3048 -> 0.1524 | C18: 3.74904 | F18: =(B18/(D18*C18))^(1/E18) ->  | G18: 11 | H18: =(F18*10.764)*G18 ->  | J18: =IF(J17<$L$3,J17+$L$4,"Over top") -> 0.25 | K18: =IF(J17<$L$3,($K$13+$K$9*(J18-$J$17)+$K$10*(J18-$J$17))*($K$14+$K$7*(J18-$J$17)+$K$8*(J18-$J$17))," ") -> 866.25 | L18: =IF(J17<$L$3,K18/43560," ") -> 0.01988636364 | M18: =IF(J17<$L$3,M17+(K17+K18)/2*(J18-J17)," ") -> 208.28125 | N18: =IF(J17<$L$3,M18/43560," ") -> 0.004781479568
A19: =IF(A18=0,0,(IF(A18=$D$6,0,IF(A18<$D$6,A18+0.25)))) -> 0.75 | B19: 0.2286 | C19: 3.59664 | G19: 11.5 | J19: 0.5 | K19: 935 | L19: 0.02146464646 | M19: 433.4375 | N19: 0.009950355831
A20: 1 | B20: 0.3048 | C20: 3.44424 | G20: 12 | J20: 0.75 | K20: 1006.25 | L20: 0.0231003214 | M20: 676.09375 | N20: 0.01552097681
A21: 1.25 | B21: 0.381 | C21: 3.29184 | G21: 12.5 | J21: 1 | K21: 1080 | L21: 0.02479338843 | M21: 936.875 | N21: 0.02150769054
A22: 1.5 | B22: 0.4572 | C22: 3.13944 | G22: 13 | J22: 1.25 | K22: 1156.25 | L22: 0.02654384757 | M22: 1216.40625 | N22: 0.02792484504
A23: 1.75 | B23: 0.5334 | C23: 2.98704 | G23: 13.5 | J23: 1.5 | K23: 1235 | L23: 0.02835169881 | M23: 1515.3125 | N23: =IF(J22<$L$3,M23/43560," ") -> 0.03478678834
A24: 2 | B24: 0.6096 | C24: 2.83464 | G24: 14 | J24: 1.75 | K24: 1316.25 | L24: 0.03021694215 | M24: 1834.21875 | N24: 0.04210786846
A25: 2.25 | B25: 0.6858 | C25: =($D$7+2*($D$8*($D$6-A25)))*0.3048 -> 2.68224 | F25: =(B25/(D25*C25))^(1/E25) ->  | G25: =$D$11+2*($D$12*A25) -> 14.5 | H25: =(F25*10.764)*G25 ->  | J25: 2 | K25: 1400 | L25: 0.03213957759 | M25: 2173.75 | N25: 0.04990243343
A26: 2.5 | B26: 0.762 | C26: 2.52984 | G26: 15 | J26: 2.25 | K26: 1486.25 | L26: 0.03411960514 | M26: 2534.53125 | N26: 0.05818483127
A27: 2.75 | B27: 0.8382 | C27: 2.37744 | G27: 15.5 | J27: 2.5 | K27: 1575 | L27: 0.03615702479 | M27: =IF(J26<$L$3,M26+(K26+K27)/2*(J27-J26)," ") -> 2917.1875 | N27: 0.06696941001
A28: 3 | B28: 0.9144 | C28: 2.22504 | G28: 16 | J28: =IF(J27<$L$3,J27+$L$4,"Overtop") -> 2.75 | K28: 1666.25 | L28: 0.03825183655 | M28: 3322.34375 | N28: 0.07627051768
A29: 3.25 | B29: 0.9906 | C29: 2.07264 | G29: 16.5 | J29: =IF(J28<$L$3,J28+$L$4,"Overtop") -> 3 | K29: 1760 | L29: =IF(J28<$L$3,K29/43560," ") -> 0.0404040404 | M29: =IF(J28<$L$3,M28+(K28+K29)/2*(J29-J28)," ") -> 3750.625 | N29: =IF(J28<$L$3,M29/43560," ") -> 0.0861025023
A30: 3.5 | B30: 1.0668 | C30: 1.92024 | G30: 17 | J30: 3.25 | K30: 1856.25 | L30: 0.04261363636 | M30: 4202.65625 | N30: 0.09647971189
A31: 3.75 | B31: 1.143 | C31: 1.76784 | G31: 17.5 | J31: 3.5 | K31: 1955 | L31: 0.04488062443 | M31: 4679.0625 | N31: 0.1074164945
A32: 4 | B32: 1.2192 | C32: 1.61544 | G32: 18 | J32: 3.75 | K32: 2056.25 | L32: 0.04720500459 | M32: 5180.46875 | N32: 0.1189271981
A33: =IF(A32=0,0,(IF(A32=$D$6,0,IF(A32<$D$6,A32+0.25)))) -> 4.25 | B33: 1.2954 | C33: =($D$7+2*($D$8*($D$6-A33)))*0.3048 -> 1.46304 | F33: =(B33/(D33*C33))^(1/E33) ->  | G33: =$D$11+2*($D$12*A33) -> 18.5 | H33: =(F33*10.764)*G33 ->  | J33: 4 | K33: 2160 | L33: 0.04958677686 | M33: 5707.5 | N33: 0.1310261708
A34: =IF(A33=0,0,(IF(A33=$D$6,0,IF(A33<$D$6,A33+0.25)))) -> 4.5 | B34: 1.3716 | C34: =($D$7+2*($D$8*($D$6-A34)))*0.3048 -> 1.31064 | F34: =(B34/(D34*C34))^(1/E34) ->  | G34: =$D$11+2*($D$12*A34) -> 19 | H34: =(F34*10.764)*G34 ->  | J34: 4.25 | K34: 2266.25 | L34: 0.05202594123 | M34: 6260.78125 | N34: 0.1437277606
A35: =IF(A34=0,0,(IF(A34=$D$6,0,IF(A34<$D$6,A34+0.25)))) -> 4.75 | B35: 1.4478 | C35: =($D$7+2*($D$8*($D$6-A35)))*0.3048 -> 1.15824 | F35: =(B35/(D35*C35))^(1/E35) ->  | G35: =$D$11+2*($D$12*A35) -> 19.5 | H35: =(F35*10.764)*G35 ->  | J35: 4.5 | K35: 2375 | L35: 0.0545224977 | M35: 6840.9375 | N35: 0.1570463154
A36: =IF(A35=0,0,(IF(A35=$D$6,0,IF(A35<$D$6,A35+0.25)))) -> 5 | B36: 1.524 | C36: =($D$7+2*($D$8*($D$6-A36)))*0.3048 -> 1.00584 | F36: =(B36/(D36*C36))^(1/E36) ->  | G36: =$D$11+2*($D$12*A36) -> 20 | H36: =(F36*10.764)*G36 ->  | J36: 4.75 | K36: 2486.25 | L36: 0.05707644628 | M36: 7448.59375 | N36: 0.1709961834
J37: 5 | K37: 2600 | L37: 0.05968778696 | M37: 8084.375 | N37: 0.1855917126
J38: Overtop
J39: Overtop
J40: Overtop
J41: Overtop
J42: Overtop
J50: Stage | K50: Discharge | L50: Storage
J51: (ft) | K51: (cfs) | L51: acre-ft
J52: =A16 -> 0 | K52: 0 | L52: =N17 -> 0
J53: 0.25 | K53: =H17 ->  | L53: =N18 -> 0.004781479568
J54: 0.5 | L54: 0.009950355831
J55: 0.75 | L55: 0.01552097681
J56: 1 | L56: 0.02150769054
J57: 1.25 | L57: 0.02792484504
J58: 1.5 | L58: 0.03478678834
J59: 1.75 | L59: 0.04210786846
J60: 2 | L60: 0.04990243343
J61: 2.25 | L61: 0.05818483127
J62: 2.5 | L62: 0.06696941001
J63: 2.75 | L63: 0.07627051768
J64: 3 | L64: 0.0861025023
J65: 3.25 | L65: 0.09647971189
J66: 3.5 | L66: 0.1074164945
J67: 3.75 | L67: 0.1189271981
J68: 4 | L68: 0.1310261708
J69: 4.25 | L69: 0.1437277606
J70: 4.5 | L70: 0.1570463154
J71: 4.75 | L71: 0.1709961834
J72: 5 | L72: 0.1855917126

Sheet lookup_table
C1: dl= 1m | D1: dl = 2m | E1: dl = 3m
A2: Stone D50 (m) | B2: Exponent b | C2: Coefficient a | D2: Coefficient a | E2: Coefficient a
C3: 1 | D3: 2 | E3: 3
A4: 0.01 | B4: 0.6371 | C4: 9.4 | D4: 6.05 | E4: 4.6
A5: 0.02 | B5: 0.654 | C5: 7.4 | D5: 4.65 | E5: 3.55
A6: 0.03 | B6: 0.6589 | C6: 6.4 | D6: 4.08 | E6: 3.08
A7: 0.04 | B7: 0.6609 | C7: 5.85 | D7: 3.65 | E7: 2.8
A8: 0.05 | B8: 0.6624 | C8: 5.4 | D8: 3.35 | E8: 2.6
A9: 0.06 | B9: 0.6635 | C9: 5.05 | D9: 3.15 | E9: 2.4
A10: 0.08 | B10: 0.6644 | C10: 4.5 | D10: 2.85 | E10: 2.2
A11: 0.09 | B11: 0.6648 | C11: 4.28 | D11: 2.7 | E11: 2.1
A12: 0.1 | B12: 0.6651 | C12: 4.13 | D12: 2.6 | E12: 2.05
A13: 0.2 | B13: 0.6662 | C13: 3.2 | D13: 2.05 | E13: 1.57
A14: 0.3 | B14: 0.6664 | C14: 2.8 | D14: 1.75 | E14: 1.3
A15: 0.4 | B15: 0.6665 | C15: 2.5 | D15: 1.55 | E15: 1.16
A16: 0.5 | B16: 0.6666 | C16: 2.3 | D16: 1.4 | E16: 1.08
A20: 0.001 | B20: d15 | C20: =FindCoef_a(A20,A21) ->  | D20: coef_a
A21: 3.5 | B21: L | C21: =FindCoef_b(A20) ->  | D21: coef_b
